Cogmind - Beta 13 @@@ ROGUE MODE // 2024.04.11 @ 10:10:41 Player: Rocketboy Result: Destroyed by G-47 Trooper with Particle Gun Performance ------------- Evolutions (2) 1000 Regions Visited (4) 800 Robots Destroyed (75) 375 Value Destroyed (2109) 2109 Prototype IDs (2) 40 Alien Tech Used (0) 0 Bonus (240) 240 TOTAL SCORE: 4564 Bonus ------- High Alert Combat Kills 40 Entered Garrisons 200 Cogmind --------- Core Integrity 0/550 Matter 288/300 Energy 100/100 System Corruption 0% Temperature Cool (34) Movement Core (250) Ox4 Location -8/Garrison Parts ------- > --- POWER (1) -------- (None) > --- PROPULSION (4) --- (None) > --- UTILITY (4) ------ Medium Storage Unit Improved Signal Interpreter > --- WEAPON (2) ------- High-powered Shotgun Mining Claw > --- INVENTORY (10) --- Light Deuterium Engine Improved Hover Unit Airjet Faulty Aerolev Unit Improved Heat Sink Hacking Suite Improved Datajack Peak State ------------ > --- POWER ------------ Light Nuclear Core > --- PROPULSION ------- Aluminum Leg Aluminum Leg Carbon-fiber Leg > --- UTILITY ---------- Improved Heat Sink Medium Storage Unit Improved Signal Interpreter Hacking Suite > --- WEAPON ----------- Improved EM Shotgun Particle Gun > --- INVENTORY -------- Light Nuclear Core Airjet Aerolev Unit Cryofiber Web Particle Gun Heavy Assault Rifle Heavy Assault Rifle Datajack Mining Claw [Rating: 25] Favorites ----------- Power Ion Engine Engine Ion Engine Power Core Light Nuclear Core Propulsion Aluminum Leg Treads Light Treads Leg Aluminum Leg Utility Medium Storage Unit Device Improved Terrain Scanner Storage Medium Storage Unit Processor Improved Signal Interpreter Hackware Hacking Suite Protection Hardened Medium Armor Plating Weapon Medium Laser Energy Gun Medium Laser Energy Cannon Advanced Beam Cannon Ballistic Gun Assault Rifle Slashing Weapon Mining Claw Special Melee Weapon Improved Datajack Build | -11 -10 -9 -8 -8 ------- Run | Yrd Mat Mat Mat Gar Slots Evolved 4 | . . 2 2 . Power . | . . . . . Propulsion 2 | . . 2 . . Utility 2 | . . . 2 . Weapon . | . . . . . Parts Attached 79 | 7 20 18 25 9 Power 10 | 1 4 2 3 . Engine 7 | 1 4 2 . . Core 3 | . . . 3 . Reactor . | . . . . . Propulsion 24 | 2 6 9 6 1 Treads 1 | . . . . 1 Leg 23 | 2 6 9 6 . Wheel . | . . . . . Hover . | . . . . . Flight . | . . . . . Utility 13 | 2 3 1 6 1 Device 6 | 1 1 . 3 1 Storage 3 | 1 1 . 1 . Processor 2 | . 1 1 . . Hackware 1 | . . . 1 . Protection 1 | . . . 1 . Artifact . | . . . . . Weapon 32 | 2 7 6 10 7 Energy Gun 14 | 1 3 3 5 2 Energy Cannon 2 | . . 1 1 . Ballistic Gun 9 | 1 4 . 2 2 Ballistic Cannon . | . . . . . Launcher . | . . . . . Special Weapon . | . . . . . Impact Weapon . | . . . . . Slashing Weapon 4 | . . 1 2 1 Piercing Weapon . | . . . . . Special Melee Weapon 3 | . . 1 . 2 Unidentified Prototypes 2 | . . 2 . . Parts Lost 27 | . 3 . 13 11 Power 5 | . 2 . 2 1 Propulsion 10 | . . . 6 4 Utility 4 | . . . 1 3 Weapon 8 | . 1 . 4 3 Highest Loss Streak 10 | . 2 . 6 10 To Critical Strikes . | . . . . . Average Slot Usage (%) 95 | . 99 99 90 82 Engine 8 | . 13 11 1 . Core 2 | . . . 6 7 Leg 30 | . 28 43 28 23 Device 9 | . 12 . 9 11 Storage 11 | . 14 11 7 9 Processor 5 | . 1 11 9 9 Hackware 2 | . . . 9 . Energy Gun 12 | . 13 12 12 8 Energy Cannon 1 | . . 5 . . Ballistic Gun 8 | . 14 1 1 5 Naked Turns . | . . . . . Heaviest Build 25 | 12 20 24 25 23 Greatest Support 45 | 20 20 40 45 35 Greatest Overweight (x) . | . . . . . Average Overweight (x) . | . . . . . Largest Inventory Capacity 10 | 8 10 10 10 10 Average Capacity 9 | 7 9 10 8 10 Most Carried 10 | 2 10 10 10 10 Average Carried 8 | 1 8 9 7 9 Final Capacity 10 | 8 10 10 10 10 Final Carried 10 | 2 10 9 10 7 Class Distribution -------------------- 59% | Scavenger-Mutant 40% | Mutant Dominant Class ---------------- Mutant | -10/Materials Scavenger-Mutant | -9/Materials Scavenger-Mutant | -8/Materials Scavenger-Mutant | -8/Garrison Resources | -11 -10 -9 -8 -8 ----------- Run | Yrd Mat Mat Mat Gar Matter Collected 1200 | 281 273 200 270 176 Remotely . | . . . . . Salvage Created 2925 | 113 705 808 955 344 Parts 176 | 3 45 57 52 19 Haulers Intercepted 4 | . 2 2 . . Recyclers Shooed 1 | . . 1 . . Parts Field Recycled . | . . . . . Retrieved Matter . | . . . . . Parts Self-Destructed . | . . . . . Prevented . | . . . . . Kills | -11 -10 -9 -8 -8 ------- Run | Yrd Mat Mat Mat Gar Combat Hostiles Destroyed 58 | . 15 18 18 7 Melee 1 | . . . 1 . Guns 49 | . 15 14 13 7 Cannons 5 | . . 3 2 . AOE 3 | . . 1 2 . Classes Destroyed 11 | 2 7 1 1 . Worker 1 | . 1 . . . Builder 2 | . 1 1 . . Tunneler 1 | 1 . . . . Hauler 4 | . 2 2 . . Recycler 3 | 1 . . 2 . Operator 3 | . 1 1 1 . Watcher 3 | . 1 . 2 . Swarmer 14 | . 3 6 5 . Grunt 33 | . 12 9 9 3 Brawler 3 | . . . 1 2 Sentry 8 | . . 3 3 2 Best Kill Streak 4 | 2 3 4 4 3 Combat Bots Only 4 | . 3 4 4 3 Max Kills in Single Turn 2 | 1 1 2 2 1 Gunslinging . | . . . . . Exploded 2 | . . 1 2 . Melee 1 | . . . 1 . Uniques/NPCs Destroyed . | . . . . . Combat | -11 -10 -9 -8 -8 -------- Run | Yrd Mat Mat Mat Gar Hostile Shots Fired 397 | . 90 58 158 91 Missed 104 | . 20 17 42 25 Damage Taken 4214 | . 933 483 1745 1053 Core 756 | . 143 55 242 316 Absorbed by Shields 27 | . . . . 27 Regen/Repaired (Parts) 106 | . 106 . . . Core Remaining (%) 76 | 100 42 86 . . Volleys Fired 224 | 11 80 44 59 30 Largest 2 | 2 2 2 2 2 Hottest 133 | 70 70 115 133 130 Shots Fired 422 | 22 158 85 104 53 Gun 394 | 22 158 65 96 53 Cannon 28 | . . 20 8 . Launcher . | . . . . . Special . | . . . . . Kinetic 150 | 11 85 . 26 28 Thermal 237 | 11 73 57 71 25 Explosive . | . . . . . Electromagnetic 35 | . . 28 7 . Robot Hit Streak 24 | 5 14 10 24 12 Robot Miss Streak 5 | 1 4 5 4 4 Penetration Max . | . . . . . Secondary Targets 2 | . 2 . . . Max Gunslinging Chain 1 | . 1 . . . Shots Hit Robots 319 | 14 112 67 86 40 Core Hits 158 | 4 43 48 41 22 Critical Kills . | . . . . . Critical Parts Destroyed . | . . . . . Critical Strikes 16 | 1 9 2 4 . Burn 16 | 1 9 2 4 . Melee Attacks 31 | . . 8 23 . Impact . | . . . . . Slashing 29 | . . 6 23 . Piercing . | . . . . . Sneak Attacks 5 | . . 5 . . Combat Hostiles . | . . . . . Follow-up Attacks . | . . . . . Damage Inflicted 4830 | 130 1219 1266 1598 617 Guns 3862 | 130 1219 754 1142 617 Cannons 348 | . . 225 123 . Explosions 289 | . . 145 144 . Melee 331 | . . 142 189 . Ramming . | . . . . . Kinetic 1212 | 67 538 . 255 352 Thermal 2729 | 63 681 718 1002 265 Explosive . | . . . . . Electromagnetic 558 | . . 406 152 . Impact . | . . . . . Slashing 331 | . . 142 189 . Piercing . | . . . . . Highest Corruption . | . . . . . Average Corruption . | . . . . . Corruption Purged . | . . . . . Corruption Blocked . | . . . . . Overload Shots . | . . . . . Overflow Damage 47 | . . 47 . . Projectiles 1 | . . 1 . . Explosions 9 | . . 9 . . Melee 37 | . . 37 . . Knockbacks . | . . . . . Impact . | . . . . . Kinetic . | . . . . . Secondary . | . . . . . Self-Inflicted Damage 91 | . . 39 52 . Shots 2 | . . 1 1 . Rammed . | . . . . . Targets Rammed . | . . . . . Kicked . | . . . . . Crushed . | . . . . . Highest Temperature 586 | 130 350 252 586 228 Average Temperature 89 | 58 78 88 124 52 Received Heat Transfer 2160 | . 519 156 864 621 Effects 13 | . 1 5 7 . Shutdowns 1 | . . . 1 . Energy Bleed 1 | . 1 . . . Interference 8 | . . 5 3 . Damage (major) 3 | . . . 3 . Siege Activations . | . . . . . Robots Corrupted . | . . . . . Combat Hostiles . | . . . . . Parts Fried . | . . . . . Impact Corruptions . | . . . . . Robots Melted . | . . . . . Combat Hostiles . | . . . . . Parts Melted 6 | . 4 1 1 . Heat Transferred 7474 | 259 2701 1509 2457 548 Parts Sabotaged . | . . . . . Parts Stolen . | . . . . . Parts Stripped . | . . . . . Power Chain Reactions 3 | . . 2 1 . Alert | -11 -10 -9 -8 -8 ------- Run | Yrd Mat Mat Mat Gar Peak Influence 545 | 10 168 419 545 364 Initial 266 | . 6 26 176 266 Average 164 | 1 54 254 293 318 Maximum Alert Level 2 | . . 2 2 1 Low Security (%) 62 | 100 100 36 20 . Level 1 32 | . . 48 67 100 Level 2 5 | . . 14 11 . Level 3 . | . . . . . Level 4 . | . . . . . Level 5 . | . . . . . High Security . | . . . . . Max Security . | . . . . . Squads Dispatched 8 | . 4 2 2 . Investigation 4 | . 3 1 . . Extermination . | . . . . . Reinforcement 3 | . 1 1 1 . Assault . | . . . . . Garrison 1 | . . . 1 . Intercept . | . . . . . Searches Triggered . | . . . . . Construction Impeded . | . . . . . Haulers Reinforced . | . . . . . Active Scanning Responses . | . . . . . Cargo Convoy Interrupts . | . . . . . Stealth | -11 -10 -9 -8 -8 --------- Run | Yrd Mat Mat Mat Gar Distress Signals 4 | . . 2 2 . Communications Jammed . | . . . . . Distress Signals . | . . . . . Times Spotted 99 | . 26 30 31 12 Peak Tracking Total 10 | . 4 5 7 10 Tactical Retreats 7 | . 1 . 4 2 Traps | -11 -10 -9 -8 -8 ------- Run | Yrd Mat Mat Mat Gar Traps Triggered 9 | . 5 2 . 2 Indirectly . | . . . . . Trap Hack Attempts 64 | . . . . 64 Triggered . | . . . . . Disarmed 1 | . . . . 1 Reprogrammed 4 | . . . . 4 Reused 1 | . . . . 1 Traps Extracted . | . . . . . Installed . | . . . . . Triggered 1 | . . . . 1 Machines | -11 -10 -9 -8 -8 ---------- Run | Yrd Mat Mat Mat Gar Machines Disabled 2 | . . 2 . . Max in Single Turn 1 | . . 1 . . Machines Repaired . | . . . . . Machines Dismantled . | . . . . . Machines Sabotaged . | . . . . . Overloaded Fab Kills . | . . . . . Hacking | -11 -10 -9 -8 -8 --------- Run | Yrd Mat Mat Mat Gar Machines Accessed 20 | . 10 3 6 1 Terminals 13 | . 7 2 3 1 Fabricators . | . . . . . Repair Stations 1 | . 1 . . . Recycling Units 4 | . 2 1 1 . Scanalyzers 1 | . . . 1 . Garrison Access 1 | . . . 1 . Total Hacks 63 | . 28 13 21 1 Successful 40 | . 13 9 17 1 Failed 23 | . 15 4 4 . Catastrophic 6 | . 5 1 . . Database Lockouts . | . . . . . Manual 51 | . 24 12 15 . Terminals 47 | . 20 12 14 1 Fabricators . | . . . . . Repair Stations 4 | . 4 . . . Recycling Units 6 | . 4 1 1 . Scanalyzers 5 | . . . 5 . Garrison Access 1 | . . . 1 . Terminal Hacks 10 | . 2 3 4 1 Part Schematic 1 | . . 1 . . Open Door 1 | . . . . 1 Level Access Points 1 | . . . 1 . Branch Access Points 2 | . 1 . 1 . Terminal Index 2 | . . 1 1 . Garrison Index 1 | . . . 1 . Unreport Threat 1 | . 1 . . . Registered Components 1 | . . 1 . . Fabricator Hacks . | . . . . . Repair Station Hacks 4 | . 4 . . . Scan Component 2 | . 2 . . . Repair 2 | . 2 . . . Recycling Unit Hacks . | . . . . . Scanalyzer 5 | . . . 5 . Insert Component 2 | . . . 2 . Analyze 3 | . . . 3 . Garrison Access Hacks 1 | . . . 1 . Unlock Access 1 | . . . 1 . Unauthorized Hacks 20 | . 7 6 7 . Terminals 16 | . 5 5 6 . Track 4 | . . 2 2 . Botnet 10 | . 5 2 3 . Operators 2 | . . 1 1 . Fabricators . | . . . . . Repair Stations . | . . . . . Recycling Units 4 | . 2 1 1 . Reject 4 | . 2 1 1 . Scanalyzers . | . . . . . Garrison Access . | . . . . . Data Cores Recovered . | . . . . . Used . | . . . . . Hacking Detections 16 | . 10 3 3 . Full Trace Events . | . . . . . Feedback Events . | . . . . . Feedback Blocked . | . . . . . Robot Schematics Acquired . | . . . . . Robots Built . | . . . . . Authchips . | . . . . . Time . | . . . . . Total Robot Build Rating . | . . . . . Part Schematics Acquired 3 | . . 1 2 . Parts Built . | . . . . . Authchips . | . . . . . Time . | . . . . . Total Part Build Rating . | . . . . . Parts Repaired 2 | . 2 . . . Time 52 | . 52 . . . Parts Recycled . | . . . . . Recycled Matter . | . . . . . Retrieved Matter . | . . . . . Retrieved Components . | . . . . . Parts Scanalyzed 2 | . . . 2 . Part Schematics Acquired 2 | . . . 2 . Parts Damaged . | . . . . . Bothacking | -11 -10 -9 -8 -8 ------------ Run | Yrd Mat Mat Mat Gar Used RIF Installer . | . . . . . Robots Hacked 1 | . . 1 . . Non-combat 1 | . . 1 . . Combat . | . . . . . Robot Hacks Applied 1 | . . 1 . . no_distress 1 | . . 1 . . Relay Couplers Released . | . . . . . Fabnet Peak Effective % . | . . . . . Robots Rewired . | . . . . . Allies Hacked . | . . . . . Hacks Repelled . | . . . . . Allies | -11 -10 -9 -8 -8 -------- Run | Yrd Mat Mat Mat Gar Total Allies 2 | . . . . 2 Largest Group 2 | . . . . 2 Highest-Rated Group 40 | . . . . 40 Highest-Rated Ally 20 | . . . . 20 Total Orders . | . . . . . Ally Attacks 7 | . . . . 7 Total Damage 125 | . . . . 125 Kills . | . . . . . Allies Corrupted 2 | . . . . 2 Allies Melted . | . . . . . Intel | -11 -10 -9 -8 -8 ------- Run | Yrd Mat Mat Mat Gar Robot Analysis Total . | . . . . . Derelict Logs Recovered . | . . . . . Drone Launches . | . . . . . Drone Recoveries . | . . . . . Exploration | -11 -10 -9 -8 -8 ------------- Run | Yrd Mat Mat Mat Gar Turns Passed 3800 | 110 1854 625 833 378 Spaces Moved 1951 | 59 1012 313 409 158 Core 5 | 5 . . . . Treads 2 | . . . . 2 Legs 1944 | 54 1012 313 409 156 Wheels . | . . . . . Hover . | . . . . . Flight . | . . . . . Fastest Speed 50 | 50 120 120 120 120 Average Speed 119 | 114 120 120 120 120 Slowest Speed 160 | 120 120 120 120 160 Overloaded Moves . | . . . . . Propulsion Burnouts . | . . . . . Robots Hopped . | . . . . . Cave-ins Triggered . | . . . . . Exploration Rate (%) 38 | 3 97 33 35 22 Regions Visited 4 Branch Regions . Pre-discovered Areas . | . . . . . Known Exits Taken 3 | . 1 1 1 . Unknown Exits Taken 1 | 1 . . . . Scrap Searched . | . . . . . Spaces Dug 2 | . . . 2 . Terrain Destroyed 12 | . . 6 6 . Melee 2 | . . . 2 . Projectile . | . . . . . AOE 10 | . . 6 4 . Terrain Rammed . | . . . . . Walls Destroyed . | . . . . . Machines Disabled . | . . . . . Actions | -11 -10 -9 -8 -8 --------- Run | Yrd Mat Mat Mat Gar Total 2948 | 78 1514 467 598 291 Wait 504 | . 362 67 56 19 Move 1948 | 58 1011 312 409 158 Hop . | . . . . . Pick Up 42 | 2 19 5 15 1 Fast Attach 27 | 7 5 4 9 2 Attach 15 | . 2 3 7 3 Detach . | . . . . . Swap 37 | . 13 11 9 4 Drop 47 | . 22 13 11 1 Fire 224 | 11 80 44 59 30 Melee 31 | . . 8 23 . Ram . | . . . . . Kick . | . . . . . Crush . | . . . . . Escape Stasis 9 | . . . . 9 Rewire . | . . . . . Trap 64 | . . . . 64 Miscellaneous . | . . . . . Route ------- -11/Scrapyard -10/Materials (discovered 5 exits: *Mat x3 / *Min x2) -9/Materials -8/Materials (discovered 4 exits: *Fac x3 / Gar) -8/Garrison History --------- Turn | Location | Event 22 | -11/Scrapyard | Discovered new exit (range 16) 111 | -11/Scrapyard | Entered Materials 119 | -10/Materials | Discovered new exit (range 5) 305 | -10/Materials | Build established: Mutant 343 | -10/Materials | Discovered new exit (range 9) 752 | -10/Materials | Discovered new exit (range 4) 849 | -10/Materials | Core integrity fell below 50% 934 | -10/Materials | Identified exit to Mines 958 | -10/Materials | Build established: Scavenger-Mutant 990 | -10/Materials | Discovered new exit (range 6) 1236 | -10/Materials | Discovered new exit (range 16) 1402 | -10/Materials | Build established: Mutant 1638 | -10/Materials | Repaired Med. Laser 1665 | -10/Materials | Repaired Ion Engine 1827 | -10/Materials | Identified exit to Materials 1965 | -10/Materials | Entered another Materials area 1965 | -9/Materials | Evolved 2 slots: Propulsion x2 2270 | -9/Materials | Build established: Scavenger-Mutant 2346 | -9/Materials | Discovered new exit (range 5) 2375 | -9/Materials | Identified exit to Materials 2590 | -9/Materials | Entered another Materials area 2590 | -8/Materials | Evolved 2 slots: Utility x2 2739 | -8/Materials | Discovered new exit (range 13) 2780 | -8/Materials | Lost 6 parts (1p3n2w) 2945 | -8/Materials | Lost 3 parts (1p1n1w) 3081 | -8/Materials | Identified exit to Factory 3332 | -8/Materials | Garrison activated, responded to threat 3423 | -8/Materials | Identified exit to Garrison 3423 | -8/Materials | Entered Garrison 3470 | -8/Garrison | Rescued a captive Derelict 3471 | -8/Garrison | Rescued a captive Derelict 3488 | -8/Garrison | Triggered checkpoint 3556 | -8/Garrison | Core integrity fell below 50% 3724 | -8/Garrison | Triggered checkpoint 3791 | -8/Garrison | Core integrity fell below 20% 3801 | -8/Garrison | Destroyed by G-47 Trooper with Particle Gun Last Messages --------------- Aluminum Leg destroyed. Critical hit (Burn: +37). Particle Gun destroyed. G-50 Soldier destroyed. Critical hit (Burn: +37). Carbon-fiber Leg destroyed. Particle Gun destroyed. Acquired 32 matter. G-47 Trooper destroyed. Acquired 7 matter. Critical hit (Burn: +37). Hvy. Assault Rifle destroyed. Acquired 10 matter. Critical hit (Burn: +37). G-47 Trooper destroyed. Acquired 4 matter. Lgt. Treads destroyed. Acquired 4 matter. Heat Sink destroyed. Critical hit (Burn: +37). Map ----- +----------------------------------------------------+ | ?????????????????????????????????????????????????? | | ?????????????????????????????????????????????????? | | ?????????????????????????????????????????????????? | | ????????????????????????? ?????????????????????? | | ????????????????????????# ?????????????????????? | | ????????????????????????# ?????????????????????? | | ????????????????????????# ?????????????????????? | | ????????????????????????# ??????#? ??????????? | | ????????????????????????# ##??? ## ??????????? | | ????????????????????????" ???? "?????????? | | ????????????????????????" ??? ???????????? | | ????????????????????????" ?? ????????????? | | ????????????????????????" ?? ?????????????? | | ????????????????????????# #? #??????????????? | | ????????????????????????# ## #??????????????? | | ????????????????????????# ???????????????? | | ????????????????????????# ?????????????????? | | ????????????????????????# ???????????????????? | | ????????????????????????# #????????????????????? | | ????????????????????????# #????????????????????? | | ????????????????????????# #??#?????????????????? | | ????????????????????????# ## #?????????????????? | | ????????????????????????# + #?????????????????? | | ????????????????????????# ####?????????????????? | | ????????????????????????# % #????????????????????? | | ##?#############++#######@!!#????????????????????? | | #?# [=%#????????????????????? | | #?# gg!= #????????????????????? | | #?# g #????????????????????? | | #?# ######################????????????????????? | | #?# #?????????????????????????????????????????? | | #?# #?????????????????????????????????????????? | | #?# #?????????????????????????????????????????? | | #?# #?????????????????????????????????????????? | | #?# #?????????????????????????????????????????? | | #?# #?????????????????????????????????????????? | | #?# #?????????????????????????????????????????? | | #?# #?????????????????????????????????????????? | | ^#?# #?????????????????????????????????????????? | | #?# #?????????????????????????????????????????? | | %#?# #?????????????????????????????????????????? | | ### #?????????????????????????????????????????? | | *%% #?????????????????????????????????????????? | | #?????????????????????????????????????????? | | #### #?????????????????????????????????????????? | | ???# #?????????????????????????????????????????? | | ???# #?????????????????????????????????????????? | | #### !#?????????????????????????????????????????? | | %/*[!#?????????????????????????????????????????? | | [[=#?????????????????????????????????????????? | +----------------------------------------------------+ Best States ------------- Heat Dissipation 45 Energy Generation 14 Energy Capacity 265 Matter Stores 300 Matter Capacity 300 Sight Range 16 Robot Scan Range 15 Terrain Scan Range 16 Terrain Scan Density 10 Base Temperature (-) 100 Armor Coverage 225 Evasion (%) 55 Recoil Reduction 1 Offensive Hacking 10 Item Schematics ----------------- Aluminum Leg | -9/Materials | Hacked Imp. Signal Interpreter | -8/Materials | Scanalyzed Mining Claw | -8/Materials | Scanalyzed Robot Schematics ------------------ None Fabricated ------------ Nothing Alien Tech Used ----------------- None Achievements -------------- None Challenges ------------ None Game ------ Seed WaveDefenseRedistributor Manual? 0 Play Time 00:46:13 Cumulative 33.8 hours Start 2024.04.11 @ 09:20:30 End 2024.04.11 @ 10:10:41 Sessions 1 Manual Loads 0 Difficulty Rogue Special Mode None Game No. 52 Rogue 52 Adventurer 0 Explorer 0 Win Type - Total 0 Types 0/0/0/0/0/0/0/0/0 Lore% 22 Gallery% 37 Achievement% 30 Wizard Run 0 Options --------- Layout 1 ASCII 0 Keyboard 0 Movement Mouse Keybinds 0 Fullscreen 1 Font 32/SmallcapsGlow Map View 50x35 Zoom Use 0% Tactical HUD 0 Map Filters NONE Filters NONE Steam 1 RUN: adea84d3-d76a-4841-9a0c-5b3dc224757c